bitfinex-derivatives/quotes_SOLF0:USTF0_20240823
["timestamp","ask_amount","ask_price","bid_price","bid_amount"]
[1724444590412,0.04997108,151.13,151.1,0.04724073]
[1724444590810,0.04997108,151.13,151.1,3.35424073]
[1724444591308,27.92,151.12,151.1,3.35424073]
[1724444591916,27.92,151.12,151.11,3.307]
[1724444592615,0.04997108,151.13,151.11,3.307]
[1724444595725,0.04997108,151.13,151.1,0.04724073]
[1724444596729,0.04997108,151.13,151.11,3.3069]
[1724444597323,0.04997108,151.13,151.12,3.3068]
[1724444597927,0.04997108,151.13,151.11,3.3069]
[1724444598231,0.04997108,151.13,151.1,0.04724073]
[1724444598725,0.04997108,151.13,151.1,3.35434073]
[1724444600130,27.92,151.12,151.1,0.04724073]
[1724444601032,0.04997108,151.13,151.1,0.04724073]
[1724444601431,0.04997108,151.13,151.12,3.3068]
[1724444601934,1.3801,151.19,151.1,27.92]
[1724444602225,27.92,151.2,151.11,0.99152149]
[1724444602421,27.92,151.2,151.11,2.39112149]
[1724444602619,27.92,151.2,151.11,1.3996]
[1724444602824,0.04649637,151.17,151.14,0.04946603]
[1724444604233,0.04649637,151.17,151.15,3.306]
[1724444605132,27.92,151.16,151.14,0.04946603]
[1724444606032,27.92,151.15,151.14,0.04946603]
[1724444606234,27.92,151.15,151.09,2.99977761]
[1724444606426,27.92,151.12,151.09,6.30707761]
[1724444606632,27.92,151.12,151.09,2.99977761]
[1724444607135,27.96549892,151.12,151.09,6.35510679]
[1724444609136,27.96549892,151.12,151.09,3.04770679]
[1724444610441,27.96549892,151.12,151.09,6.35510679]
[1724444615534,27.96549892,151.12,151.09,3.35532918]
[1724444616033,27.96549892,151.12,151.09,0.04792918]
[1724444617337,0.04549892,151.12,151.09,0.04792918]
[1724444618234,0.04549892,151.12,151.09,3.35522918]
[1724444618639,0.04549892,151.12,151.09,0.04792918]
[1724444619530,27.96549892,151.12,151.09,0.04792918]
[1724444619936,27.92,151.1,151.09,0.04792918]
[1724444621842,21.305,151.1,151.09,0.04792918]
[1724444623946,22.5836,151.1,151.09,0.04792918]
[1724444631545,22.5836,151.1,151.05,3.3083]
[1724444631848,27.92,151.07,151.05,3.3083]
[1724444632347,27.92,151.07,151.02,11.99911044]
[1724444632548,27.92,151.07,151.04,0.04400372]
[1724444632851,0.04663157,151.08,151.04,4.55480466]
[1724444633150,0.04663157,151.08,151.04,0.04400372]
[1724444633346,0.04663157,151.08,151.04,1.03662101]
[1724444633552,0.04663157,151.08,151.04,0.04400372]
[1724444633847,0.04663157,151.08,151.04,1.03651318]
[1724444634051,0.04663157,151.08,151.07,3.3079]
[1724444639456,27.92,151.15,151.07,0.99113521]
[1724444639753,27.92,151.15,151.07,3.99091282]
[1724444639954,6.90989177,151.41,151.07,3.99091282]
[1724444639955,61.20130814,151.52,151.11,27.92]
[1724444640147,27.92,151.2,151.12,1.3374]
[1724444640343,0.04884566,151.18,151.15,3.3061]
[1724444640552,27.96884566,151.18,151.14,0.04499027]
[1724444640750,27.92,151.17,151.14,0.04499027]
[1724444643453,2.67164566,151.18,151.14,0.04499027]
[1724444643654,2.67164566,151.18,151.15,3.3061]
[1724444643847,2.67164566,151.18,151.14,0.04499027]
[1724444645153,1.38414566,151.18,151.14,0.04499027]
[1724444645358,0.04884566,151.18,151.14,0.04499027]
[1724444646150,27.96884566,151.18,151.14,0.04499027]
[1724444646548,0.04884566,151.18,151.14,0.04499027]
[1724444646757,0.04884566,151.18,151.16,3.3057]
[1724444647149,0.04884566,151.18,151.14,0.04499027]
[1724444647859,136.15708804,151.53,151.17,27.92]
[1724444648158,27.92,151.27,151.22,3.3045]
[1724444648452,27.92,151.27,151.13,19.71696624]
[1724444648453,27.92,151.27,151.19,27.92]
[1724444648856,0.0479266,151.25,151.21,0.05016955]
[1724444649160,0.0479266,151.25,151.21,27.97016955]
[1724444649355,1.3392,151.31,151.22,27.92]
[1724444650559,0.04780178,151.28,151.25,0.04744449]
[1724444650959,0.04780178,151.28,151.26,3.3037]
[1724444652959,0.04780178,151.28,151.25,0.04744449]
[1724444653660,27.92,151.27,151.25,0.04744449]
[1724444657064,27.92,151.27,151.22,3.3046]
[1724444657260,27.92,151.25,151.22,3.3046]
[1724444657469,27.92,151.25,151.21,3.3048]
[1724444658159,27.97034146,151.25,151.21,0.04333885]
[1724444658362,1.3614,151.24,151.21,0.04333885]
[1724444659469,1.3614,151.24,151.21,3.34813885]
[1724444659763,1.3614,151.24,151.21,0.04333885]
[1724444660254,1.3614,151.24,151.21,3.34803885]
[1724444660656,1.3614,151.24,151.21,0.04333885]
[1724444663067,0.05034146,151.25,151.21,0.04333885]
[1724444663463,0.05034146,151.25,151.24,3.3041]
[1724444669770,0.05034146,151.25,151.21,0.04333885]
[1724444671575,0.05034146,151.25,151.23,3.3042]
[1724444676174,0.05034146,151.25,151.24,3.3041]
[1724444679476,226.0,151.49,151.24,27.92]
[1724444679666,4.0664,151.38,151.26,27.92]
[1724444679867,27.92,151.36,151.26,27.92]
[1724444680071,27.92,151.36,151.29,3.3029]
[1724444680473,0.04488547,151.34,151.31,0.04993074]
[1724444681577,0.04488547,151.34,151.31,3.35243074]
[1724444681975,0.04488547,151.34,151.31,0.04993074]
[1724444682479,0.04488547,151.34,151.32,3.3024]
[1724444683075,27.96488547,151.34,151.31,0.04993074]
[1724444683871,27.96488547,151.34,151.32,3.3023]
[1724444684072,0.04488547,151.34,151.32,3.3023]
[1724444685082,0.04488547,151.34,151.33,3.3022]
[1724444686387,0.04488547,151.34,151.32,3.3024]
[1724444686889,0.04488547,151.34,151.33,3.3022]
[1724444687092,0.04488547,151.34,151.31,0.04993074]
[1724444688080,0.04488547,151.34,151.32,3.3023]
[1724444688391,0.04488547,151.34,151.31,0.04993074]
[1724444688584,0.04488547,151.34,151.33,3.3022]
[1724444691391,0.04488547,151.34,151.32,3.3024]
[1724444692587,0.04488547,151.34,151.33,3.3022]
[1724444698895,0.04488547,151.34,151.31,0.04993074]
[1724444699997,0.04488547,151.34,151.31,3.35243074]
[1724444700390,0.04488547,151.34,151.31,0.04993074]
[1724444700793,0.04488547,151.34,151.32,3.3023]
[1724444701491,0.04488547,151.34,151.31,3.35253074]
[1724444701998,0.04488547,151.34,151.31,0.04993074]
[1724444703285,0.04488547,151.34,151.31,3.35253074]
[1724444704195,0.04488547,151.34,151.31,0.04993074]
[1724444705196,1.41828547,151.34,151.31,0.04993074]
[1724444705498,27.92,151.33,151.31,0.04993074]
[1724444706594,27.92,151.33,151.32,3.3024]
[1724444706795,1.41828547,151.34,151.31,0.04993074]
[1724444707197,0.04488547,151.34,151.33,3.3022]
[1724444707795,0.04488547,151.34,151.33,34.45287386]
[1724444707997,1.3223,151.41,151.37,3.3012]
[1724444709001,1.37065174,151.41,151.37,3.34926737]
[1724444709301,1.37065174,151.41,151.37,0.04806737]
[1724444709997,29.29065174,151.41,151.37,0.04806737]
[1724444710700,29.29065174,151.41,151.38,3.301]
[1724444711603,1.37065174,151.41,151.39,3.3008]
[1724444712905,0.04835174,151.41,151.4,3.3007]
[1724444719418,0.04835174,151.41,151.39,3.3007]
[1724444720113,0.04835174,151.41,151.4,3.3007]
[1724444720420,0.04835174,151.41,151.37,0.04806737]
[1724444722514,0.04835174,151.41,151.39,3.3007]
[1724444723715,0.04835174,151.41,151.37,0.04806737]
[1724444724220,0.04835174,151.41,151.39,3.3008]
[1724444724416,0.04835174,151.41,151.37,0.04806737]
[1724444725623,0.04835174,151.41,151.4,3.3007]
[1724444727717,0.04835174,151.41,151.38,27.92]
[1724444727917,0.04835174,151.41,151.37,0.04806737]
[1724444728517,0.04835174,151.41,151.4,3.3007]
[1724444729220,0.04835174,151.41,151.37,0.04806737]
[1724444731416,0.04835174,151.41,151.4,3.3007]
[1724444735219,0.04835174,151.41,151.37,0.04806737]
[1724444735722,0.04835174,151.41,151.39,3.3007]
[1724444736420,0.04835174,151.41,151.37,0.04806737]
[1724444736621,0.04835174,151.41,151.4,3.3007]
[1724444737827,0.04835174,151.41,151.37,0.04806737]
[1724444738922,0.04835174,151.41,151.38,3.301]
[1724444739126,0.04835174,151.41,151.37,0.04806737]
[1724444739327,27.96835174,151.41,151.37,0.04806737]
[1724444741824,27.96835174,151.41,151.37,3.34926737]
[1724444742431,27.96835174,151.41,151.38,3.301]
[1724444743830,27.96835174,151.41,151.37,0.04806737]
[1724444744036,25.35,151.39,151.37,0.04806737]
[1724444744334,25.35,151.39,151.38,3.3011]
[1724444744928,25.39835174,151.41,151.38,3.3011]
[1724444746232,25.39835174,151.41,151.39,3.3009]
[1724444746432,25.39835174,151.41,151.37,0.04806737]
[1724444746832,25.39835174,151.41,151.38,3.301]
[1724444747229,25.39835174,151.41,151.37,0.04806737]
[1724444747632,25.39835174,151.41,151.38,3.3009]
[1724444748130,0.04835174,151.41,151.4,3.3007]
[1724444748439,0.04835174,151.41,151.37,0.04806737]
[1724444748627,25.35,151.38,151.37,0.04806737]
[1724444749035,28.72268629,151.38,151.28,28.34977761]
[1724444749234,25.35,151.35,151.29,0.98825047]
[1724444749430,1.2834,151.37,151.27,1.3976]
[1724444749431,25.35,151.34,151.27,1.3976]
[1724444749642,25.35,151.34,151.28,0.98820345]
[1724444749839,25.35,151.34,151.26,28.34977761]
[1724444750134,25.35,151.34,151.27,0.98809967]
[1724444750331,25.39625287,151.32,151.28,0.04587505]
[1724444750737,0.04625287,151.32,151.28,0.04587505]
[1724444751135,0.04625287,151.32,151.28,1.0341993]
[1724444751327,0.04625287,151.32,151.3,3.3028]
[1724444753930,0.04625287,151.32,151.29,3.303]
[1724444755338,0.04625287,151.32,151.3,3.3028]
[1724444755841,0.04625287,151.32,151.28,0.04587505]
[1724444756641,0.04625287,151.32,151.3,3.3027]
[1724444757436,0.04625287,151.32,151.29,3.303]
[1724444757635,25.39625287,151.32,151.28,0.04587505]
[1724444758044,1.3921,151.31,151.28,0.04587505]
[1724444758551,25.35,151.3,151.28,0.04587505]
[1724444760751,25.35,151.3,151.22,0.98911824]
[1724444761055,25.35,151.27,151.23,0.98914764]
[1724444761255,25.35,151.27,151.24,0.98914764]
[1724444761554,25.35,151.27,151.2,2.99977761]
[1724444761754,25.35,151.27,151.2,7.48009071]
[1724444761954,0.04555374,151.25,151.22,0.04596589]
[1724444762350,0.04555374,151.25,151.23,3.3041]
[1724444763657,0.04555374,151.25,151.22,0.04596589]
[1724444764459,0.04555374,151.25,151.22,1.03544205]
[1724444764753,25.39555374,151.25,151.22,0.04596589]
[1724444764961,1.4004,151.24,151.22,0.04596589]
[1724444766452,0.04555374,151.25,151.22,0.04596589]
[1724444766658,0.04555374,151.25,151.22,1.03593056]
[1724444767861,0.04555374,151.25,151.22,0.04596589]
[1724444768159,0.04555374,151.25,151.23,3.3044]
[1724444769558,0.04555374,151.25,151.24,3.3041]
[1724444770857,0.04555374,151.25,151.24,4.29371504]
[1724444771357,0.04555374,151.25,151.24,29.64371504]
[1724444771755,0.04555374,151.25,151.24,4.29371504]
[1724444772458,0.04555374,151.25,151.24,0.98961504]
[1724444772762,0.04555374,151.25,151.22,0.04596589]
[1724444773357,0.04555374,151.25,151.22,1.03584935]
[1724444773555,0.04555374,151.25,151.22,0.04596589]
[1724444774357,25.39555374,151.25,151.22,0.04596589]
[1724444774957,25.35,151.23,151.22,0.04596589]
[1724444775459,25.35,151.23,151.15,74.49206854]
[1724444775460,25.35,151.23,151.15,64.17173571]
[1724444775663,25.35,151.2,151.16,0.99105373]
[1724444776563,25.39904262,151.2,151.16,1.03364939]
[1724444776955,25.35,151.18,151.16,1.03364939]
[1724444777150,25.39904262,151.2,151.16,0.04259566]
[1724444777354,25.39904262,151.2,151.16,1.03402902]
[1724444777558,0.04904262,151.2,151.15,55.20576473]
[1724444777759,0.04904262,151.2,151.17,3.3053]
[1724444778354,0.04904262,151.2,151.17,3.3054]
[1724444778558,0.04904262,151.2,151.17,3.35365136]
[1724444779762,0.04904262,151.2,151.18,3.3052]
[1724444780363,0.04904262,151.2,151.17,3.35365136]
[1724444780956,0.04904262,151.2,151.17,0.04825136]
[1724444782470,1.3122,151.26,151.17,0.04825136]
[1724444782471,1.3122,151.26,151.19,25.35]
[1724444782664,1.3122,151.26,151.21,25.35]
[1724444782862,25.35,151.29,151.19,25.35]
[1724444783061,25.35,151.29,151.2,0.91589179]
[1724444783268,25.35,151.29,151.19,25.35]
[1724444783573,1.3545,151.32,151.22,0.04420981]
[1724444783574,0.04193348,151.26,151.22,0.04420981]
[1724444783765,25.39193348,151.26,151.22,0.0502725]
[1724444784368,1.3545,151.25,151.22,0.0502725]
[1724444785770,25.35,151.24,151.22,0.0502725]
[1724444785971,25.35,151.24,151.15,55.20576473]
[1724444786173,25.35,151.21,151.16,0.91650178]
[1724444786469,25.35,151.23,151.16,0.91650178]
[1724444786672,25.35,151.23,151.19,3.3049]
[1724444787169,25.3985219,151.23,151.19,3.35026833]
[1724444790173,25.35,151.22,151.19,0.04536833]
[1724444790667,0.0485219,151.23,151.19,0.04536833]
[1724444791963,0.0485219,151.23,151.2,3.3047]
[1724444792576,0.0485219,151.23,151.19,3.35036833]
[1724444792971,0.0485219,151.23,151.19,0.04536833]
[1724444794864,0.0485219,151.23,151.21,3.3046]
[1724444796376,0.0485219,151.23,151.22,3.3044]
[1724444799576,2.7404,151.31,151.26,3.3035]
[1724444800582,0.04766844,151.3,151.27,0.04853771]
[1724444800879,25.39766844,151.3,151.27,0.04853771]
[1724444802978,25.35,151.28,151.27,0.04853771]
[1724444808690,25.35,151.28,151.25,3.3037]
[1724444809190,25.35,151.28,151.24,3.3038]
[1724444809395,25.35,151.26,151.18,2.99977761]
[1724444809594,25.35,151.26,151.19,0.91569318]
[1724444809798,0.04814556,151.24,151.2,0.04534322]
[1724444811991,0.04814556,151.24,151.23,3.3042]
[1724444814299,0.04814556,151.24,151.2,0.04534322]
[1724444814700,0.04814556,151.24,151.2,0.96067276]
[1724444814900,0.04814556,151.24,151.21,3.3046]
[1724444816996,0.04814556,151.24,151.22,3.3044]
[1724444817196,0.04814556,151.24,151.2,0.04534322]
[1724444817391,0.04814556,151.24,151.22,25.36]
[1724444817591,0.04814556,151.24,151.23,3.3042]
[1724444817796,1.27,151.3,151.23,8.41328374]
[1724444818104,1.3057,151.32,151.29,3.3027]
[1724444818497,3.3013,151.37,151.29,3.3027]
[1724444818697,28.6613,151.37,151.29,3.3027]
[1724444818893,0.05023274,151.35,151.31,0.04650533]
[1724444819800,0.05023274,151.35,151.31,3.34890533]
[1724444820301,25.41023274,151.35,151.31,0.04650533]
[1724444820494,1.3864,151.34,151.31,0.04650533]
[1724444820696,2.656,151.34,151.31,0.04650533]
[1724444822304,2.656,151.34,151.31,3.34890533]
[1724444822602,25.36,151.33,151.31,0.04650533]
[1724444822995,7.39130305,151.34,151.31,3.34880533]
[1724444823798,4.0361,151.34,151.31,3.34880533]
[1724444827402,4.0361,151.34,151.32,3.3022]
[1724444827598,4.0361,151.34,151.31,0.04650533]
[1724444828202,4.0361,151.34,151.31,3.34880533]
[1724444828602,4.0361,151.34,151.32,3.3022]
[1724444828999,4.0361,151.34,151.31,0.04650533]
[1724444829303,0.05023274,151.35,151.31,0.04650533]
[1724444829697,0.05023274,151.35,151.34,3.302]
[1724444830412,0.05023274,151.35,151.33,3.302]
[1724444830715,0.05023274,151.35,151.31,0.04650533]
[1724444831104,0.05023274,151.35,151.32,3.3024]
[1724444831406,25.41023274,151.35,151.31,0.04650533]
[1724444831712,25.36,151.34,151.31,0.04650533]
[1724444831906,26.6995,151.34,151.31,0.04650533]
[1724444832204,26.6995,151.34,151.31,3.34900533]
[1724444832205,1.3395,151.34,151.31,3.34900533]
[1724444835009,29.96779436,151.34,151.31,0.04650533]
[1724444835209,31.36189436,151.34,151.31,0.04650533]
[1724444835506,32.66149436,151.34,151.31,0.04650533]
[1724444837408,0.05023274,151.35,151.31,0.04650533]
[1724444839211,0.05023274,151.35,151.32,25.36]
[1724444840011,0.05023274,151.35,151.34,3.302]
[1724444843015,0.05023274,151.35,151.33,3.3022]
[1724444843515,0.05023274,151.35,151.31,0.04650533]
[1724444844415,0.05023274,151.35,151.31,3.34890533]
[1724444844616,0.05023274,151.35,151.31,0.04650533]
[1724444845319,0.05023274,151.35,151.32,3.3024]
[1724444846519,0.05023274,151.35,151.33,3.3021]
[1724444846710,0.05023274,151.35,151.31,0.04650533]
[1724444847419,0.05023274,151.35,151.32,3.3023]
[1724444847716,0.05023274,151.35,151.31,0.04650533]
[1724444849418,0.05023274,151.35,151.31,3.34890533]
[1724444849920,25.36,151.34,151.31,0.04650533]
[1724444850514,1.39883274,151.35,151.31,3.34900533]
[1724444851425,1.39883274,151.35,151.31,0.04650533]
[1724444852515,1.39883274,151.35,151.31,3.34910533]
[1724444852720,1.39883274,151.35,151.31,0.04650533]
[1724444854428,1.39883274,151.35,151.32,3.3024]
[1724444857929,1.39883274,151.35,151.33,3.3022]
[1724444858426,1.39883274,151.35,151.32,3.3023]
[1724444858826,1.39883274,151.35,151.31,0.04650533]
[1724444859330,1.39883274,151.35,151.32,3.3024]
[1724444860425,1.39883274,151.35,151.33,3.3021]
[1724444864827,25.36,151.34,151.33,3.3021]
[1724444870334,0.05023274,151.35,151.33,3.3021]
[1724444870534,0.05023274,151.35,151.34,3.302]
[1724444872735,0.05023274,151.35,151.31,0.04650533]
[1724444872936,25.36,151.32,151.23,2.99977761]
[1724444873133,25.36,151.28,151.22,1.3952]
[1724444873341,25.36,151.28,151.26,3.3035]
[1724444877137,25.36,151.27,151.25,0.0508673]
[1724444880742,25.36,151.27,151.25,3.3547673]
[1724444883838,25.36,151.27,151.26,3.3037]
[1724444885743,25.36,151.27,151.25,0.0508673]
[1724444886744,25.36,151.27,151.25,3.3546673]
[1724444887252,25.36,151.27,151.23,3.3042]
[1724444887546,25.36,151.24,151.23,3.3042]
[1724444887742,25.36,151.24,151.15,80.56576473]
[1724444887943,25.36,151.22,151.16,0.91545386]
[1724444888145,0.04440948,151.21,151.17,0.04993525]
[1724444888342,25.36,151.2,151.17,0.04993525]
[1724444888948,25.36,151.2,151.17,3.35533525]
[1724444889536,25.36,151.2,151.18,3.3051]
[1724444890242,25.36,151.2,151.17,3.35533525]
[1724444890850,25.36,151.2,151.18,3.3052]
[1724444892142,0.04440948,151.21,151.17,0.04993525]
[1724444892542,0.04440948,151.21,151.19,25.36]
[1724444892940,0.04440948,151.21,151.2,3.3048]
[1724444894049,2.7935,151.3,151.19,25.36]
[1724444894251,2.7935,151.3,151.2,1.3425]
[1724444894252,25.36,151.29,151.2,1.3425]
[1724444894848,25.36,151.27,151.22,3.3043]
[1724444895150,0.04241297,151.26,151.23,0.05062221]
[1724444895547,25.36,151.25,151.23,0.05062221]
[1724444899561,25.36,151.25,151.23,3.35482221]
[1724444900260,25.36,151.25,151.23,0.05062221]
[1724444901557,25.36,151.25,151.15,25.36]
[1724444901758,25.36,151.22,151.15,26.756]
[1724444902563,0.04410628,151.2,151.18,3.3052]
[1724444902856,0.04410628,151.2,151.17,0.04786526]
[1724444903255,0.04410628,151.2,151.19,3.3051]
[1724444909163,0.04410628,151.2,151.18,3.3052]
[1724444909961,25.40410628,151.2,151.17,3.35326526]
[1724444911362,25.40410628,151.2,151.17,0.04786526]
[1724444911667,25.36,151.18,151.17,0.04786526]
[1724444920869,25.36,151.18,151.15,3.306]
[1724444921169,25.36,151.17,151.15,3.306]
[1724444922068,25.36,151.17,151.14,3.34456475]
[1724444925879,28.6657,151.17,151.14,0.03836475]
[1724444926083,25.36,151.15,151.14,0.03836475]
[1724444930177,25.36,151.15,151.14,3.34466475]
[1724444931884,25.36,151.17,151.16,3.3057]
[1724444932983,25.36,151.17,151.14,0.03836475]
[1724444933188,25.36,151.15,151.14,0.03836475]
[1724444933377,25.36,151.16,151.15,3.306]
[1724444933976,1.40490883,151.18,151.17,3.3056]
[1724444934177,0.04960883,151.18,151.17,3.3056]
[1724444940191,1.2645,151.24,151.22,3.3044]
[1724444940785,1.2645,151.24,151.21,3.3048]
[1724444941184,1.3069818,151.24,151.21,3.34761568]
[1724444942795,26.6669818,151.24,151.21,3.34761568]
[1724444943198,26.6669818,151.24,151.21,0.04281568]
[1724444944086,26.6669818,151.24,151.21,3.34751568]
[1724444944283,26.6669818,151.24,151.21,0.04281568]
[1724444945092,25.36,151.22,151.14,1.3909]
[1724444946297,0.04292558,151.2,151.16,0.04253821]
[1724444946690,25.40292558,151.2,151.16,0.04253821]
[1724444947000,25.36,151.18,151.16,0.04253821]
[1724444947197,25.36,151.18,151.16,3.34823821]
[1724444947398,25.36,151.18,151.16,0.04253821]
[1724444949593,28.72878632,151.18,151.1,1.3656]
[1724444949903,25.36,151.16,151.1,1.3656]
[1724444950402,25.36,151.16,151.13,3.3064]
[1724444950597,25.40843055,151.16,151.13,3.3064]
[1724444953102,25.40843055,151.16,151.14,3.3063]
[1724444955113,3.3064,151.14,151.08,3.3074]
[1724444955406,25.36,151.11,151.03,4.40047761]
[1724444955594,0.04603166,151.09,151.04,5.40836525]
[1724444955800,0.04603166,151.09,151.08,3.3076]
[1724444965315,25.36,151.17,151.14,3.3063]
[1724444966218,25.36,151.17,151.09,1.3477]
[1724444966417,0.04376675,151.15,151.11,0.04865136]
[1724444966604,0.04376675,151.15,151.14,3.3063]
[1724444968010,1.4034,151.25,151.14,3.38211182]
[1724444968214,25.36,151.22,151.12,25.36]
[1724444968517,25.36,151.22,151.13,0.91492021]
[1724444969012,0.04865213,151.19,151.17,3.3053]
[1724444969215,0.04865213,151.19,151.16,0.0460091]
[1724444970615,0.04865213,151.19,151.18,3.3054]
[1724444984920,0.04865213,151.19,151.16,0.0460091]
[1724444985724,0.04865213,151.19,151.17,3.3057]
[1724444986025,0.04865213,151.19,151.16,0.0460091]
[1724444987026,0.04865213,151.19,151.18,3.3054]
[1724444992727,0.04865213,151.19,151.16,0.0460091]
[1724444992728,0.04865213,151.19,151.17,3.3056]
[1724444993626,0.04865213,151.19,151.18,3.3054]
[1724444994029,0.04865213,151.19,151.16,0.0460091]
[1724444994232,0.04865213,151.19,151.17,3.3055]
[1724444996341,0.04865213,151.19,151.16,0.0460091]
[1724444996732,1.35155213,151.19,151.16,0.0460091]
[1724444996933,25.38,151.18,151.16,0.0460091]
[1724444997837,25.38,151.17,151.08,1.314]
[1724444998030,25.38,151.17,151.09,0.91514425]
[1724444999241,0.04611375,151.15,151.11,0.04357922]
[1724444999838,0.04611375,151.15,151.11,3.35037922]
[1724445000537,0.04611375,151.15,151.11,0.04357922]
[1724445000538,25.42611375,151.15,151.11,0.04357922]
[1724445000737,25.38,151.13,151.11,0.04357922]
[1724445002341,1.3476,151.12,151.11,0.04357922]
[1724445006344,2.6518,151.12,151.06,73.5596646]
[1724445006537,2.6518,151.12,151.08,3.3076]
[1724445007142,2.69593409,151.12,151.08,3.3076]
[1724445007541,2.69593409,151.12,151.07,3.3078]
[1724445007943,25.38,151.11,151.07,3.3078]
[1724445008538,25.38,151.11,151.06,76.8676646]
[1724445008744,25.38,151.09,151.06,73.5596646]
[1724445008948,25.38,151.09,151.0,25.38]
[1724445009142,0.0456908,151.06,151.01,0.91642663]
[1724445009641,0.0456908,151.06,151.02,0.91642663]
[1724445009846,0.0456908,151.06,150.99,1.3556]
[1724445010040,0.0456908,151.06,151.0,0.91630225]
[1724445010448,0.0456908,151.06,151.03,3.3086]
[1724445010638,0.0456908,151.06,151.0,25.38]
[1724445010944,25.4256908,151.06,151.01,0.91611142]
[1724445011150,25.4256908,151.06,151.0,0.91611142]
[1724445011349,0.0456908,151.06,150.99,1.3556]
[1724445011546,0.0456908,151.06,151.03,3.3085]
[1724445011747,0.0456908,151.06,150.99,1.3556]
[1724445012148,0.0456908,151.06,151.03,3.3085]
[1724445012947,0.0456908,151.06,151.0,25.38]
[1724445013251,0.0456908,151.06,151.01,0.91647919]
[1724445013450,0.0456908,151.06,151.04,3.3084]
[1724445017847,0.0456908,151.06,151.03,3.3086]
[1724445018351,0.0456908,151.06,150.99,1.3556]
[1724445018549,1.3540908,151.06,151.02,3.3089]
[1724445019153,1.3540908,151.06,151.01,3.3091]
[1724445019651,1.3540908,151.06,150.99,1.3556]
[1724445019855,1.3540908,151.06,151.0,0.9166961]
[1724445020449,1.3540908,151.06,151.01,3.3091]
[1724445020656,1.3540908,151.06,150.99,1.3556]
[1724445020851,1.3540908,151.06,151.0,0.916623]
[1724445021057,25.38,151.04,150.96,25.38]
[1724445021356,0.04782491,151.02,150.97,0.91656472]
[1724445021555,0.04782491,151.02,150.96,4.25682658]
[1724445021855,25.42782491,151.02,150.97,0.91656472]
[1724445022055,25.42782491,151.02,150.98,0.91656472]
[1724445022255,25.42782491,151.02,150.96,4.21570273]
[1724445022459,25.42782491,151.02,150.97,0.91676457]
[1724445022760,25.42782491,151.02,150.99,3.3095]
[1724445023163,25.42782491,151.02,150.98,3.3097]
[1724445023459,25.42782491,151.02,150.95,4.74724694]
[1724445023654,25.42782491,151.02,150.96,0.91695054]
[1724445024257,25.38,151.0,150.92,1.3087]
[1724445024462,0.04231728,150.98,150.93,0.91755497]
[1724445024961,25.42231728,150.98,150.93,0.91755497]
[1724445025160,25.42231728,150.98,150.91,1.2902]
[1724445025360,25.42231728,150.98,150.93,3.3108]
[1724445025959,25.42231728,150.98,150.94,3.3106]
[1724445026657,25.42231728,150.98,150.91,1.2902]
[1724445027255,25.42231728,150.98,150.89,87.33608358]
[1724445027964,25.42231728,150.98,150.89,90.69179359]
[1724445028365,25.42231728,150.98,150.92,3.311]
[1724445028560,25.42231728,150.98,150.89,90.69179359]
[1724445028765,25.38,150.96,150.89,90.69179359]
[1724445028966,0.04919752,150.94,150.89,90.69179359]
[1724445029860,0.04919752,150.94,150.93,3.3109]
[1724445030060,0.04919752,150.94,150.89,61.95608358]
[1724445030568,0.04919752,150.94,150.91,3.3113]
[1724445030859,0.04919752,150.94,150.89,61.95608358]
[1724445032264,0.04919752,150.94,150.9,3.3114]
[1724445032465,0.04919752,150.94,150.89,61.95608358]
[1724445032862,0.04919752,150.94,150.91,3.3112]
[1724445033058,0.04919752,150.94,150.89,61.95608358]
[1724445033263,0.04919752,150.94,150.93,3.3109]
[1724445033662,0.04919752,150.94,150.89,61.95608358]
[1724445033859,0.04919752,150.94,150.92,3.3111]
[1724445034662,0.04919752,150.94,150.93,3.3109]
[1724445041769,0.04919752,150.94,150.92,3.3111]
[1724445042168,0.04919752,150.94,150.93,3.3109]
[1724445043664,25.38,151.0,150.95,3.3103]
[1724445043864,25.38,151.0,150.92,25.38]
[1724445044263,25.38,151.0,150.95,3.3103]
[1724445044471,25.38,151.0,150.92,25.38]
[1724445044671,25.38,151.0,150.94,0.0423337]
[1724445044876,0.04432111,150.98,150.94,0.0423337]